[Event "Titled Tuesday Blitz March 29 Early 2022"]
[White "Vestby-Ellingsen, Mads"]
[Black "Hernandez Jimenez, Alexander Andres"]
[WhiteFideId "1520857"]
[BlackFideId "3900452"]
[WhiteElo "2232"]
[BlackElo "2082"]
[Result "1/2-1/2"]
[Round "06"]
[TimeControl "180+1"]
[Date "2022.03.30"]
[WhiteClock "0:00:02"]
[BlackClock "0:00:06"]

1. d4 {[%clk 0:03:00]}  Nf6 {[%clk 0:02:51]} 2. Bf4 {[%clk 0:02:59]}  d5 {[%clk 0:02:50]} 3. e3 {[%clk 0:02:59]}  c6 {[%clk 0:02:47]} 4. c4 {[%clk 0:02:57]}  Bf5 {[%clk 0:02:46]} 5. Nc3 {[%clk 0:02:51]}  e6 {[%clk 0:02:46]} 6. Qb3 {[%clk 0:02:51]}  Qb6 {[%clk 0:02:46]} 7. c5 {[%clk 0:02:48]}  Qxb3 {[%clk 0:02:46]} 8. axb3 {[%clk 0:02:48]}  Nbd7 {[%clk 0:02:46]} 9. b4 {[%clk 0:02:47]}  Be7 {[%clk 0:02:38]} 10. b5 {[%clk 0:02:45]}  Ne4 {[%clk 0:02:31]} 11. Nxe4 {[%clk 0:02:42]}  dxe4 {[%clk 0:02:27]} 12. bxc6 {[%clk 0:02:25]}  bxc6 {[%clk 0:02:27]} 13. Ba6 {[%clk 0:02:26]}  e5 {[%clk 0:02:26]} 14. Bg3 {[%clk 0:02:07]}  O-O {[%clk 0:02:18]} 15. Bb7 {[%clk 0:02:02]}  Rab8 {[%clk 0:02:17]} 16. Rxa7 {[%clk 0:02:01]}  Nxc5 {[%clk 0:02:05]} 17. Bxc6 {[%clk 0:01:46]}  Nd3+ {[%clk 0:02:03]} 18. Kd2 {[%clk 0:01:42]}  Rxb2+ {[%clk 0:02:03]} 19. Kc3 {[%clk 0:01:39]}  Bb4+ {[%clk 0:02:01]} 20. Kc4 {[%clk 0:01:39]}  Rc2+ {[%clk 0:01:47]} 21. Kb5 {[%clk 0:01:39]}  Rb8+ {[%clk 0:01:46]} 22. Rb7 {[%clk 0:01:34]}  Rxb7+ {[%clk 0:01:43]} 23. Bxb7 {[%clk 0:01:35]}  Bd7+ {[%clk 0:01:34]} 24. Kb6 {[%clk 0:01:32]}  Bd6 {[%clk 0:01:16]} 25. Nh3 {[%clk 0:01:20]}  Rb2+ {[%clk 0:01:14]} 26. Ka7 {[%clk 0:01:15]}  Bc7 {[%clk 0:00:56]} 27. Bxe4 {[%clk 0:01:02]}  Bb8+ {[%clk 0:00:44]} 28. Ka8 {[%clk 0:01:00]}  Nb4 {[%clk 0:00:18]} 29. Kxb8 {[%clk 0:00:54]}  Nd5+ {[%clk 0:00:13]} 30. Ka7 {[%clk 0:00:45]}  Ra2+ {[%clk 0:00:12]} 31. Kb7 {[%clk 0:00:43]}  Rb2+ {[%clk 0:00:09]} 32. Ka6 {[%clk 0:00:42]}  Ra2+ {[%clk 0:00:06]} 33. Kb7 {[%clk 0:00:37]}  Rb2+ {[%clk 0:00:06]} 34. Ka7 {[%clk 0:00:03]}  Ra2+ {[%clk 0:00:06]} 35. Kb8 {[%clk 0:00:02]}  Rb2+ {[%clk 0:00:06]} 36. Ka7 {[%clk 0:00:02]} 1/2-1/2


[Site "https://www.chess.com"]

[Event "Titled Tuesday Blitz March 29 Early 2022"]
[White "Vlassov, Nikolai"]
[Black "De Silva, L M S T"]
[WhiteFideId "4103360"]
[BlackFideId "9953698"]
[WhiteElo "2407"]
[BlackElo "1631"]
[Result "0-1"]
[Round "06"]
[TimeControl "180+1"]
[Date "2022.03.29"]
[WhiteClock "0:00:06"]
[BlackClock "0:00:08"]

1. e4 {[%clk 0:03:00]}  e5 {[%clk 0:03:00]} 2. Bc4 {[%clk 0:03:00]}  Nf6 {[%clk 0:02:59]} 3. d3 {[%clk 0:03:00]}  Nc6 {[%clk 0:03:00]} 4. Nf3 {[%clk 0:02:59]}  h6 {[%clk 0:02:57]} 5. O-O {[%clk 0:02:58]}  d6 {[%clk 0:02:57]} 6. h3 {[%clk 0:02:57]}  g5 {[%clk 0:02:57]} 7. Nh2 {[%clk 0:02:56]}  Be6 {[%clk 0:02:52]} 8. Nc3 {[%clk 0:02:55]}  d5 {[%clk 0:02:52]} 9. exd5 {[%clk 0:02:55]}  Nxd5 {[%clk 0:02:53]} 10. Bb5 {[%clk 0:02:46]}  Nxc3 {[%clk 0:02:51]} 11. Bxc6+ {[%clk 0:02:44]}  bxc6 {[%clk 0:02:51]} 12. bxc3 {[%clk 0:02:45]}  Bg7 {[%clk 0:02:49]} 13. Rb1 {[%clk 0:02:41]}  O-O {[%clk 0:02:49]} 14. Re1 {[%clk 0:02:27]}  f5 {[%clk 0:02:46]} 15. Nf3 {[%clk 0:02:20]}  e4 {[%clk 0:02:37]} 16. Nd4 {[%clk 0:02:10]}  Bxd4 {[%clk 0:02:33]} 17. cxd4 {[%clk 0:02:09]}  Bxa2 {[%clk 0:02:34]} 18. Rb2 {[%clk 0:01:53]}  Bf7 {[%clk 0:02:32]} 19. dxe4 {[%clk 0:01:53]}  fxe4 {[%clk 0:02:32]} 20. Rxe4 {[%clk 0:01:48]}  Bd5 {[%clk 0:02:32]} 21. Re5 {[%clk 0:01:45]}  Qf6 {[%clk 0:02:30]} 22. Be3 {[%clk 0:01:43]}  a5 {[%clk 0:02:26]} 23. Qd3 {[%clk 0:01:36]}  a4 {[%clk 0:02:25]} 24. c4 {[%clk 0:01:36]}  a3 {[%clk 0:02:25]} 25. Ra2 {[%clk 0:01:35]}  Bf7 {[%clk 0:02:14]} 26. Rc5 {[%clk 0:01:21]}  Bg6 {[%clk 0:02:10]} 27. Qc3 {[%clk 0:01:18]}  g4 {[%clk 0:01:13]} 28. hxg4 {[%clk 0:01:11]}  Rab8 {[%clk 0:01:10]} 29. g5 {[%clk 0:00:51]}  hxg5 {[%clk 0:01:06]} 30. Rxg5 {[%clk 0:00:31]}  Rf7 {[%clk 0:00:43]} 31. Rxa3 {[%clk 0:00:11]}  Rb1+ {[%clk 0:00:41]} 32. Kh2 {[%clk 0:00:12]}  Kh7 {[%clk 0:00:19]} 33. d5 {[%clk 0:00:10]}  Qd6+ {[%clk 0:00:19]} 34. Rg3 {[%clk 0:00:06]}  Rf5 {[%clk 0:00:17]} 35. f4 {[%clk 0:00:04]}  Rh5+ {[%clk 0:00:17]} 36. Rh3 {[%clk 0:00:04]}  Rxh3+ {[%clk 0:00:15]} 37. Kxh3 {[%clk 0:00:05]}  Bf5+ {[%clk 0:00:14]} 38. g4 {[%clk 0:00:05]}  Qh6+ {[%clk 0:00:13]} 39. Kg3 {[%clk 0:00:06]}  Rh1 {[%clk 0:00:08]} 0-1


[Site "https://www.chess.com"]

[Event "Titled Tuesday Blitz March 29 Early 2022"]
[White "Vovk, Orest"]
[Black "Mogirzan, Matei-Valeriu"]
[WhiteFideId "14113490"]
[BlackFideId "1257455"]
[WhiteElo "2203"]
[BlackElo "1733"]
[Result "1-0"]
[Round "06"]
[TimeControl "180+1"]
[Date "2022.03.30"]
[WhiteClock "0:00:10"]
[BlackClock "0:00:01"]

1. h4 {[%clk 0:03:00]}  e5 {[%clk 0:02:58]} 2. h5 {[%clk 0:03:01]}  Nf6 {[%clk 0:02:57]} 3. h6 {[%clk 0:01:40]}  g6 {[%clk 0:02:50]} 4. Nc3 {[%clk 0:01:39]}  d5 {[%clk 0:02:47]} 5. d3 {[%clk 0:01:38]}  Bc5 {[%clk 0:02:41]} 6. e3 {[%clk 0:01:37]}  Nc6 {[%clk 0:02:37]} 7. Nf3 {[%clk 0:01:34]}  Bg4 {[%clk 0:02:32]} 8. Be2 {[%clk 0:01:10]}  Qe7 {[%clk 0:02:25]} 9. d4 {[%clk 0:01:07]}  exd4 {[%clk 0:02:23]} 10. Nxd4 {[%clk 0:01:06]}  Bxe2 {[%clk 0:02:17]} 11. Ncxe2 {[%clk 0:01:05]}  Nxd4 {[%clk 0:02:12]} 12. Nxd4 {[%clk 0:01:04]}  O-O-O {[%clk 0:02:11]} 13. c3 {[%clk 0:01:00]}  Ne4 {[%clk 0:02:08]} 14. Bd2 {[%clk 0:00:58]}  Qg5 {[%clk 0:01:58]} 15. Qf3 {[%clk 0:00:52]}  Nxd2 {[%clk 0:01:50]} 16. Kxd2 {[%clk 0:00:50]}  Bxd4 {[%clk 0:01:43]} 17. cxd4 {[%clk 0:00:49]}  f5 {[%clk 0:01:40]} 18. g3 {[%clk 0:00:47]}  Qe7 {[%clk 0:01:37]} 19. a3 {[%clk 0:00:46]}  Rd6 {[%clk 0:01:34]} 20. Rhc1 {[%clk 0:00:42]}  Re8 {[%clk 0:01:23]} 21. b4 {[%clk 0:00:42]}  Qe4 {[%clk 0:01:20]} 22. Qf4 {[%clk 0:00:41]}  Qg2 {[%clk 0:00:59]} 23. Rg1 {[%clk 0:00:29]}  Qe4 {[%clk 0:00:56]} 24. Rac1 {[%clk 0:00:26]}  Qxf4 {[%clk 0:00:50]} 25. gxf4 {[%clk 0:00:26]}  c6 {[%clk 0:00:45]} 26. Rc5 {[%clk 0:00:26]}  b6 {[%clk 0:00:41]} 27. Rc3 {[%clk 0:00:25]}  Kb7 {[%clk 0:00:41]} 28. Rgc1 {[%clk 0:00:25]}  Rg8 {[%clk 0:00:33]} 29. b5 {[%clk 0:00:23]}  Rc8 {[%clk 0:00:28]} 30. a4 {[%clk 0:00:23]}  Re6 {[%clk 0:00:16]} 31. Ke2 {[%clk 0:00:21]}  Rd6 {[%clk 0:00:12]} 32. Kf3 {[%clk 0:00:21]}  Re6 {[%clk 0:00:11]} 33. Kg3 {[%clk 0:00:22]}  Rc7 {[%clk 0:00:09]} 34. Kh4 {[%clk 0:00:22]}  Rd6 {[%clk 0:00:09]} 35. Kg5 {[%clk 0:00:22]}  Re6 {[%clk 0:00:10]} 36. bxc6+ {[%clk 0:00:19]}  Kc8 {[%clk 0:00:09]} 37. a5 {[%clk 0:00:19]}  b5 {[%clk 0:00:08]} 38. a6 {[%clk 0:00:18]}  b4 {[%clk 0:00:04]} 39. Rc5 {[%clk 0:00:18]}  b3 {[%clk 0:00:04]} 40. Rxd5 {[%clk 0:00:18]}  Rexc6 {[%clk 0:00:04]} 41. Rxc6 {[%clk 0:00:18]}  Rxc6 {[%clk 0:00:05]} 42. Rb5 {[%clk 0:00:18]}  Rb6 {[%clk 0:00:05]} 43. Rc5+ {[%clk 0:00:17]}  Kd7 {[%clk 0:00:04]} 44. Rc1 {[%clk 0:00:16]}  Rxa6 {[%clk 0:00:04]} 45. Rb1 {[%clk 0:00:15]}  Rb6 {[%clk 0:00:05]} 46. f3 {[%clk 0:00:16]}  a5 {[%clk 0:00:04]} 47. e4 {[%clk 0:00:16]}  fxe4 {[%clk 0:00:04]} 48. fxe4 {[%clk 0:00:17]}  a4 {[%clk 0:00:05]} 49. f5 {[%clk 0:00:18]}  a3 {[%clk 0:00:05]} 50. f6 {[%clk 0:00:16]}  a2 {[%clk 0:00:04]} 51. Rf1 {[%clk 0:00:16]}  b2 {[%clk 0:00:04]} 52. f7 {[%clk 0:00:16]}  b1=Q {[%clk 0:00:03]} 53. f8=Q {[%clk 0:00:16]}  Qxf1 {[%clk 0:00:02]} 54. Qxf1 {[%clk 0:00:16]}  Ra6 {[%clk 0:00:01]} 55. Qa1 {[%clk 0:00:10]} 1-0


[Site "https://www.chess.com"]

[Event "Titled Tuesday Blitz March 29 Early 2022"]
[White "Xu, Yi"]
[Black "Brodowski, Piotr"]
[WhiteFideId "8605564"]
[BlackFideId "1124480"]
[WhiteElo "2471"]
[BlackElo "2422"]
[Result "1-0"]
[Round "06"]
[TimeControl "180+1"]
[Date "2022.03.29"]
[WhiteClock "0:00:29"]
[BlackClock "0:00:06"]

1. e4 {[%clk 0:03:00]}  d6 {[%clk 0:02:58]} 2. d4 {[%clk 0:03:00]}  Nf6 {[%clk 0:02:58]} 3. Nc3 {[%clk 0:03:00]}  g6 {[%clk 0:02:57]} 4. f4 {[%clk 0:02:58]}  Bg7 {[%clk 0:02:57]} 5. Nf3 {[%clk 0:02:58]}  O-O {[%clk 0:02:54]} 6. Bd3 {[%clk 0:02:57]}  Bg4 {[%clk 0:02:53]} 7. e5 {[%clk 0:02:54]}  dxe5 {[%clk 0:02:43]} 8. fxe5 {[%clk 0:02:54]}  Nd5 {[%clk 0:02:06]} 9. h3 {[%clk 0:02:46]}  Be6 {[%clk 0:01:33]} 10. Ne4 {[%clk 0:02:34]}  Nb6 {[%clk 0:01:25]} 11. h4 {[%clk 0:02:28]}  Bg4 {[%clk 0:01:21]} 12. c3 {[%clk 0:02:10]}  N8d7 {[%clk 0:01:12]} 13. h5 {[%clk 0:02:10]}  c5 {[%clk 0:01:03]} 14. hxg6 {[%clk 0:01:58]}  fxg6 {[%clk 0:01:03]} 15. Rxh7 {[%clk 0:01:52]}  Bxf3 {[%clk 0:00:56]} 16. Rxg7+ {[%clk 0:01:39]}  Kxg7 {[%clk 0:00:57]} 17. gxf3 {[%clk 0:01:40]}  cxd4 {[%clk 0:00:55]} 18. cxd4 {[%clk 0:01:39]}  Nd5 {[%clk 0:00:37]} 19. Qb3 {[%clk 0:01:33]}  N7b6 {[%clk 0:00:33]} 20. Ng5 {[%clk 0:01:28]}  Qd7 {[%clk 0:00:30]} 21. Bd2 {[%clk 0:01:27]}  Rac8 {[%clk 0:00:26]} 22. Ke2 {[%clk 0:01:22]}  Rc6 {[%clk 0:00:14]} 23. Rh1 {[%clk 0:01:19]}  Rh8 {[%clk 0:00:14]} 24. Rxh8 {[%clk 0:01:15]}  Kxh8 {[%clk 0:00:15]} 25. Qd1 {[%clk 0:01:15]}  e6 {[%clk 0:00:08]} 26. Qh1+ {[%clk 0:01:14]}  Kg8 {[%clk 0:00:09]} 27. Bxg6 {[%clk 0:01:05]}  Nc4 {[%clk 0:00:09]} 28. Bf7+ {[%clk 0:01:01]}  Kf8 {[%clk 0:00:08]} 29. Qh8+ {[%clk 0:00:49]}  Ke7 {[%clk 0:00:09]} 30. Bg6 {[%clk 0:00:47]}  Rc8 {[%clk 0:00:07]} 31. Bb4+ {[%clk 0:00:31]}  Nxb4 {[%clk 0:00:06]} 32. Qf6# {[%clk 0:00:29]} 1-0


[Site "https://www.chess.com"]

[Event "Titled Tuesday Blitz March 29 Early 2022"]
[White "Yanayt, Eugene"]
[Black "Quirke, Jeffrey"]
[WhiteFideId "2020165"]
[BlackFideId "2013029"]
[WhiteElo "2046"]
[BlackElo "2174"]
[Result "1-0"]
[Round "06"]
[TimeControl "180+1"]
[Date "2022.03.30"]
[WhiteClock "0:00:44"]
[BlackClock "0:00:02"]

1. d4 {[%clk 0:03:00]}  d5 {[%clk 0:02:58]} 2. c4 {[%clk 0:02:53]}  e6 {[%clk 0:02:57]} 3. Nf3 {[%clk 0:02:51]}  Nf6 {[%clk 0:02:56]} 4. g3 {[%clk 0:02:51]}  Bb4+ {[%clk 0:02:55]} 5. Nc3 {[%clk 0:02:49]}  O-O {[%clk 0:02:49]} 6. Bg2 {[%clk 0:02:48]}  dxc4 {[%clk 0:02:48]} 7. O-O {[%clk 0:02:45]}  Nc6 {[%clk 0:02:47]} 8. Qa4 {[%clk 0:02:43]}  Nd5 {[%clk 0:02:42]} 9. Qc2 {[%clk 0:02:35]}  Be7 {[%clk 0:02:31]} 10. a3 {[%clk 0:02:12]}  Na5 {[%clk 0:02:08]} 11. Rb1 {[%clk 0:02:09]}  b6 {[%clk 0:02:04]} 12. e4 {[%clk 0:02:07]}  Nf6 {[%clk 0:01:59]} 13. Rd1 {[%clk 0:02:00]}  Bb7 {[%clk 0:01:55]} 14. Qe2 {[%clk 0:01:58]}  Qe8 {[%clk 0:01:39]} 15. Bf4 {[%clk 0:01:50]}  c6 {[%clk 0:01:23]} 16. a4 {[%clk 0:01:28]}  Rc8 {[%clk 0:01:11]} 17. Ne5 {[%clk 0:01:16]}  Nd7 {[%clk 0:01:09]} 18. Nxc4 {[%clk 0:01:15]}  Ba6 {[%clk 0:01:02]} 19. b3 {[%clk 0:01:13]}  e5 {[%clk 0:00:58]} 20. dxe5 {[%clk 0:01:12]}  Bb4 {[%clk 0:00:37]} 21. Na2 {[%clk 0:01:05]}  Bxc4 {[%clk 0:00:19]} 22. bxc4 {[%clk 0:01:03]}  c5 {[%clk 0:00:18]} 23. Nxb4 {[%clk 0:01:02]}  cxb4 {[%clk 0:00:18]} 24. Rxb4 {[%clk 0:01:02]}  Nxe5 {[%clk 0:00:15]} 25. Rb5 {[%clk 0:00:53]}  Nexc4 {[%clk 0:00:13]} 26. Rh5 {[%clk 0:00:52]}  Qe6 {[%clk 0:00:06]} 27. e5 {[%clk 0:00:49]}  g6 {[%clk 0:00:02]} 28. Bd5 {[%clk 0:00:44]} 1-0


[Site "https://www.chess.com"]

[Event "Titled Tuesday Blitz March 29 Early 2022"]
[White "Yang, Kaiqi"]
[Black "Martin, Lewis"]
[WhiteFideId "8604398"]
[BlackFideId "410551"]
[WhiteElo "2373"]
[BlackElo "2145"]
[Result "1-0"]
[Round "06"]
[TimeControl "180+1"]
[Date "2022.03.30"]
[WhiteClock "0:00:20"]
[BlackClock "0:00:13"]

1. e4 {[%clk 0:03:00]}  c5 {[%clk 0:02:58]} 2. Nc3 {[%clk 0:03:00]}  Nc6 {[%clk 0:02:58]} 3. Bb5 {[%clk 0:03:00]}  Nd4 {[%clk 0:02:58]} 4. Nf3 {[%clk 0:03:00]}  a6 {[%clk 0:02:56]} 5. Bd3 {[%clk 0:02:57]}  g6 {[%clk 0:02:54]} 6. Nxd4 {[%clk 0:02:46]}  cxd4 {[%clk 0:02:53]} 7. Ne2 {[%clk 0:02:47]}  Bg7 {[%clk 0:02:51]} 8. b3 {[%clk 0:02:47]}  d5 {[%clk 0:02:47]} 9. exd5 {[%clk 0:02:45]}  Qxd5 {[%clk 0:02:46]} 10. O-O {[%clk 0:02:45]}  Nf6 {[%clk 0:02:42]} 11. Bb2 {[%clk 0:02:44]}  e5 {[%clk 0:02:36]} 12. c3 {[%clk 0:02:34]}  dxc3 {[%clk 0:02:00]} 13. Bc4 {[%clk 0:02:27]}  Qc6 {[%clk 0:01:38]} 14. Nxc3 {[%clk 0:02:01]}  O-O {[%clk 0:01:36]} 15. Qe2 {[%clk 0:01:43]}  Re8 {[%clk 0:01:33]} 16. Rac1 {[%clk 0:01:39]}  b5 {[%clk 0:01:32]} 17. Nxb5 {[%clk 0:01:30]}  Qd7 {[%clk 0:01:20]} 18. Bxf7+ {[%clk 0:00:47]}  Qxf7 {[%clk 0:01:13]} 19. Nd6 {[%clk 0:00:44]}  Qd5 {[%clk 0:01:06]} 20. Nxe8 {[%clk 0:00:41]}  Nxe8 {[%clk 0:01:06]} 21. Rfe1 {[%clk 0:00:32]}  Bb7 {[%clk 0:01:04]} 22. f3 {[%clk 0:00:32]}  Rd8 {[%clk 0:01:01]} 23. Bxe5 {[%clk 0:00:31]}  Qxd2 {[%clk 0:00:51]} 24. Rc2 {[%clk 0:00:23]}  Qxe2 {[%clk 0:00:46]} 25. Rcxe2 {[%clk 0:00:23]}  Bf8 {[%clk 0:00:32]} 26. h4 {[%clk 0:00:20]}  Ng7 {[%clk 0:00:30]} 27. Kh2 {[%clk 0:00:19]}  Nf5 {[%clk 0:00:28]} 28. Kh3 {[%clk 0:00:19]}  Bc8 {[%clk 0:00:16]} 29. g4 {[%clk 0:00:19]}  Ne7 {[%clk 0:00:14]} 30. Bf6 {[%clk 0:00:19]}  Rd3 {[%clk 0:00:12]} 31. Bxe7 {[%clk 0:00:18]}  Rxf3+ {[%clk 0:00:12]} 32. Kg2 {[%clk 0:00:18]}  Bxg4 {[%clk 0:00:12]} 33. Bxf8 {[%clk 0:00:18]}  Kxf8 {[%clk 0:00:13]} 34. Rf2 {[%clk 0:00:18]}  Rxf2+ {[%clk 0:00:12]} 35. Kxf2 {[%clk 0:00:19]}  Kg7 {[%clk 0:00:13]} 36. Kg3 {[%clk 0:00:20]}  Bf5 {[%clk 0:00:13]} 37. Kf4 {[%clk 0:00:20]} 1-0


[Site "https://www.chess.com"]

[Event "Titled Tuesday Blitz March 29 Early 2022"]
[White "volunteers1998"]
[Black "Kobalia, Mikhail"]
[BlackFideId "4119150"]
[WhiteElo "2292"]
[BlackElo "2667"]
[Result "0-1"]
[Round "06"]
[TimeControl "180+1"]
[Date "2022.03.30"]
[WhiteClock "0:00:50"]
[BlackClock "0:01:57"]

1. e4 {[%clk 0:02:58]}  c5 {[%clk 0:02:59]} 2. Nf3 {[%clk 0:02:55]}  e6 {[%clk 0:02:59]} 3. d4 {[%clk 0:02:54]}  cxd4 {[%clk 0:03:00]} 4. Nxd4 {[%clk 0:02:55]}  a6 {[%clk 0:03:00]} 5. Nc3 {[%clk 0:02:55]}  b5 {[%clk 0:03:00]} 6. Be2 {[%clk 0:02:49]}  Qb6 {[%clk 0:02:59]} 7. O-O {[%clk 0:02:47]}  Bb7 {[%clk 0:02:58]} 8. Be3 {[%clk 0:02:40]}  Bc5 {[%clk 0:02:57]} 9. a3 {[%clk 0:02:35]}  Nc6 {[%clk 0:02:54]} 10. Nxc6 {[%clk 0:02:33]}  Bxc6 {[%clk 0:02:53]} 11. Bxc5 {[%clk 0:02:31]}  Qxc5 {[%clk 0:02:53]} 12. Qd2 {[%clk 0:02:28]}  Nf6 {[%clk 0:02:52]} 13. Bd3 {[%clk 0:02:15]}  O-O {[%clk 0:02:52]} 14. Rad1 {[%clk 0:02:13]}  a5 {[%clk 0:02:51]} 15. Rfe1 {[%clk 0:02:08]}  b4 {[%clk 0:02:50]} 16. axb4 {[%clk 0:02:04]}  axb4 {[%clk 0:02:50]} 17. Nb1 {[%clk 0:02:02]}  d5 {[%clk 0:02:50]} 18. exd5 {[%clk 0:01:59]}  Bxd5 {[%clk 0:02:49]} 19. Re3 {[%clk 0:01:53]}  Rfd8 {[%clk 0:02:42]} 20. Rg3 {[%clk 0:01:46]}  Be4 {[%clk 0:02:27]} 21. Qe3 {[%clk 0:01:32]}  Qc6 {[%clk 0:02:10]} 22. Qg5 {[%clk 0:01:24]}  Bg6 {[%clk 0:02:09]} 23. Nd2 {[%clk 0:01:17]}  b3 {[%clk 0:02:02]} 24. Nxb3 {[%clk 0:01:14]}  Ne4 {[%clk 0:02:00]} 25. Qe3 {[%clk 0:01:05]}  Nxg3 {[%clk 0:02:00]} 26. hxg3 {[%clk 0:01:04]}  Bxd3 {[%clk 0:01:59]} 27. Rxd3 {[%clk 0:01:02]}  Qxc2 {[%clk 0:01:58]} 28. Rxd8+ {[%clk 0:01:00]}  Rxd8 {[%clk 0:01:57]} 29. Qb6 {[%clk 0:00:51]}  Qd1+ {[%clk 0:01:57]} 30. Kh2 {[%clk 0:00:50]}  Qh5+ {[%clk 0:01:57]} 0-1


[Site "https://www.chess.com"]

[Event "Titled Tuesday Blitz March 29 Early 2022"]
[White "Abdusattorov, Nodirbek"]
[Black "Avila Pavas, Santiago"]
[WhiteFideId "14204118"]
[BlackFideId "4437128"]
[WhiteElo "2663"]
[BlackElo "2242"]
[Result "1-0"]
[Round "07"]
[TimeControl "180+1"]
[Date "2022.03.29"]
[WhiteClock "0:00:30"]
[BlackClock "0:00:02"]

1. e4 {[%clk 0:03:00]}  Nf6 {[%clk 0:03:00]} 2. e5 {[%clk 0:03:00]}  Nd5 {[%clk 0:03:00]} 3. d4 {[%clk 0:02:59]}  d6 {[%clk 0:03:01]} 4. Nf3 {[%clk 0:02:59]}  g6 {[%clk 0:03:01]} 5. Bc4 {[%clk 0:02:57]}  Nb6 {[%clk 0:03:02]} 6. Bb3 {[%clk 0:02:57]}  Bg7 {[%clk 0:03:02]} 7. Qe2 {[%clk 0:02:57]}  O-O {[%clk 0:03:02]} 8. h3 {[%clk 0:02:55]}  c5 {[%clk 0:03:02]} 9. dxc5 {[%clk 0:02:45]}  dxc5 {[%clk 0:03:03]} 10. O-O {[%clk 0:02:45]}  a5 {[%clk 0:03:03]} 11. Nc3 {[%clk 0:02:35]}  a4 {[%clk 0:02:48]} 12. Rd1 {[%clk 0:02:34]}  Qc7 {[%clk 0:02:13]} 13. Nd5 {[%clk 0:02:33]}  Nxd5 {[%clk 0:02:13]} 14. Bxd5 {[%clk 0:02:34]}  Nc6 {[%clk 0:02:12]} 15. Bf4 {[%clk 0:02:23]}  Be6 {[%clk 0:02:10]} 16. Bxe6 {[%clk 0:02:22]}  fxe6 {[%clk 0:02:11]} 17. Qc4 {[%clk 0:02:22]}  Kh8 {[%clk 0:02:07]} 18. Bg3 {[%clk 0:02:12]}  Nxe5 {[%clk 0:02:01]} 19. Bxe5 {[%clk 0:02:05]}  Bxe5 {[%clk 0:02:01]} 20. Qxe6 {[%clk 0:02:06]}  Bf6 {[%clk 0:01:37]} 21. Rd7 {[%clk 0:01:58]}  Qf4 {[%clk 0:01:33]} 22. Rad1 {[%clk 0:01:48]}  b5 {[%clk 0:01:13]} 23. b3 {[%clk 0:01:34]}  axb3 {[%clk 0:01:12]} 24. axb3 {[%clk 0:01:35]}  Kg7 {[%clk 0:00:59]} 25. Ne5 {[%clk 0:01:03]}  Rad8 {[%clk 0:00:06]} 26. Rxd8 {[%clk 0:00:53]}  Rxd8 {[%clk 0:00:06]} 27. Qf7+ {[%clk 0:00:41]}  Kh6 {[%clk 0:00:07]} 28. Ng4+ {[%clk 0:00:41]}  Qxg4 {[%clk 0:00:08]} 29. hxg4 {[%clk 0:00:33]}  Rxd1+ {[%clk 0:00:08]} 30. Kh2 {[%clk 0:00:33]}  Kg5 {[%clk 0:00:05]} 31. Qxh7 {[%clk 0:00:31]}  Rd2 {[%clk 0:00:02]} 32. Kg3 {[%clk 0:00:30]}  Be5+ {[%clk 0:00:02]} 33. Kf3 {[%clk 0:00:30]}  Rxc2 {[%clk 0:00:02]} 34. Qxe7+ {[%clk 0:00:29]}  Bf6 {[%clk 0:00:02]} 35. Qe3+ {[%clk 0:00:29]}  Kh4 {[%clk 0:00:02]} 36. Qh6# {[%clk 0:00:30]} 1-0


[Site "https://www.chess.com"]